[Event "EYCC Girls-U14 2019"]
[Site "Bratislava"]
[Date "2019.08.08"]
[Round "7.17"]
[White "Kralj, Nika"]
[Black "Slusarczyk, Milena"]
[Result "0-1"]
[ECO "B90"]
[WhiteElo "1807"]
[BlackElo "1522"]
[Annotator "NA"]
[PlyCount "73"]
[EventDate "2019.08.02"]
[EventType "swiss"]
[EventCountry "SVK"]
[SourceTitle "playchess.com"]
[Source "ChessBase"]
[SourceQuality "1"]
[TimeControl "40/5400+30:1800+30"]

1. e4 {[%emt 0:00:00]} c5 {[%emt 0:00:00]} 2. Nf3 {[%emt 0:00:00]} d6 {[%emt 0:00:00]} 3. d4 {[%emt 0:00:00]} cxd4 {[%emt 0:00:03]} 4. Nxd4 {[%emt 0:00:00]} Nf6 {[%emt 0:00:11]} 5. Nc3 {[%emt 0:00:00]} a6 {[%emt 0:00:12]} 6. h3 {[%emt 0:00:07]} e5 {[%emt 0:01:54]} 7. Nde2 {[%emt 0:00:06]} Be7 {[%emt 0:01:52]} 8. g4 {[%emt 0:00:13]} Nc6 {[%emt 0:03:44]} 9. Be3 {[%emt 0:00:46]} Be6 {[%emt 0:03:29]} 10. Ng3 {[%emt 0:01:04]} d5 {[%emt 0:05:02]} 11. exd5 {[%emt 0:08:12]} Nxd5 {[%emt 0:05:49]} 12. Nxd5 {[%emt 0:00:24]} Qxd5 {[%emt 0:00:52]} 13. Qxd5 {[%emt 0:02:13]} Bxd5 {[%emt 0:00:15]} 14. Rg1 {[%emt 0:00:27]} Nb4 {[%emt 0:02:58]} 15. O-O-O {[%emt 0:03:39]} Bxa2 {[%emt 0:05:56]} 16. Nf5 {[%emt 0:02:21]} Rc8 {[%emt 0:04:50]} 17. Rd2 {[%emt 0:01:28]} g6 {[%emt 0:02:18]} 18. Nxe7 {[%emt 0:01:21]} Kxe7 {[%emt 0:00:17]} 19. Bg2 {[%emt 0:00:47]} Rhd8 {[%emt 0:09:45]} 20. Rgd1 {[%emt 0:04:41]} Rxd2 {[%emt 0:05:28]} 21. Rxd2 {[%emt 0:00:07]} b5 {[%emt 0:03:17]} 22. Bb6 {[%emt 0:16:29]} Ke8 {[%emt 0:09:53]} 23. Kd1 {[%emt 0:03:43]} Be6 {[%emt 0:03:34]} 24. c3 {[%emt 0:04:01]} Nc6 {[%emt 0:02:33]} 25. Rd6 {[%emt 0:01:28]} Nd8 {[%emt 0:01:51]} 26. Ba5 {[%emt 0:03:45]} f5 {[%emt 0:06:08]} 27. gxf5 {[%emt 0:08:16]} gxf5 {[%emt 0:01:02]} 28. Rxa6 {[%emt 0:00:51]} e4 {[%emt 0:02:10]} 29. Bf1 {[%emt 0:04:29]} Rb8 {[%emt 0:04:17]} 30. Ke1 {[%emt 0:07:47]} Bc4 {[%emt 0:05:23]} 31. Bb4 {[%emt 0:03:24]} Kf7 {[%emt 0:01:04]} 32. Rd6 {[%emt 0:06:37]} Ra8 {[%emt 0:02:18]} 33. Ba3 {[%emt 0:00:35]} Rb8 {[%emt 0:00:59]} 34. Bxc4+ {[%emt 0:01:23]} bxc4 {[%emt 0:00:08]} 35. Rd7+ {[%emt 0:00:06]} Kg6 {[%emt 0:01:05]} 36. Rc7 {[%emt 0:05:11]} Ne6 {[%emt 0:00:28]} 37. Kf1 {[%emt 0:04:19]} 0-1

[Event "EYCC Girls-U14 2019"]
[Site "Bratislava"]
[Date "2019.08.08"]
[Round "7.18"]
[White "Zabrzanska, Weronika"]
[Black "Alekseenko, Mariya"]
[Result "1-0"]
[ECO "B22"]
[WhiteElo "1770"]
[BlackElo "1848"]
[Annotator "NA"]
[PlyCount "193"]
[EventDate "2019.08.02"]
[EventType "swiss"]
[EventCountry "SVK"]
[SourceTitle "playchess.com"]
[Source "ChessBase"]
[SourceQuality "1"]
[TimeControl "40/5400+30:1800+30"]

1. e4 {[%emt 0:00:00]} c5 {[%emt 0:00:00]} 2. c3 {[%emt 0:00:00]} d5 {[%emt 0:00:00]} 3. exd5 {[%emt 0:00:00]} Qxd5 {[%emt 0:00:00]} 4. d4 {[%emt 0:00:00]} Nc6 {[%emt 0:00:02]} 5. Nf3 {[%emt 0:00:02]} Bg4 {[%emt 0:00:07]} 6. Be2 {[%emt 0:00:23]} cxd4 7. cxd4 {[%emt 0:00:46]} e6 {[%emt 0:00:20]} 8. Nc3 {[%emt 0:00:11]} Qa5 {[%emt 0:00:07]} 9. O-O {[%emt 0:00:53]} Nf6 {[%emt 0:00:13]} 10. h3 {[%emt 0:00:19]} Bh5 {[%emt 0:00:39]} 11. Be3 {[%emt 0:00:59]} Be7 {[%emt 0:00:17]} 12. Qb3 {[%emt 0:00:21]} Qb4 {[%emt 0:13:00]} 13. g4 {[%emt 0:01:12]} Qxb3 {[%emt 0:04:21]} 14. axb3 {[%emt 0:00:09]} Bg6 {[%emt 0:00:10]} 15. Ne5 {[%emt 0:01:05]} O-O {[%emt 0:02:22]} 16. Bf3 {[%emt 0:01:40]} Rfc8 {[%emt 0:24:28]} 17. Rfc1 {[%emt 0:06:48]} a6 {[%emt 0:17:06]} 18. Nxg6 {[%emt 0:19:14]} hxg6 {[%emt 0:00:10]} 19. Na4 {[%emt 0:02:03]} Nd7 {[%emt 0:03:04]} 20. Bxc6 {[%emt 0:06:52]} Rxc6 {[%emt 0:04:59]} 21. Rxc6 {[%emt 0:02:24]} bxc6 {[%emt 0:00:05]} 22. Rc1 {[%emt 0:00:24]} Rc8 {[%emt 0:00:22]} 23. Kf1 {[%emt 0:07:32]} g5 {[%emt 0:04:25]} 24. Ke2 {[%emt 0:00:48]} f6 {[%emt 0:05:17]} 25. Bd2 {[%emt 0:06:13]} Bd6 {[%emt 0:02:22]} 26. Ba5 {[%emt 0:02:08]} Kf7 {[%emt 0:00:44]} 27. Nb6 {[%emt 0:05:48]} Nxb6 {[%emt 0:04:32]} 28. Bxb6 {[%emt 0:00:06]} Ke7 {[%emt 0:00:17]} 29. Rc3 {[%emt 0:03:48]} Kd7 {[%emt 0:00:43]} 30. Bc5 {[%emt 0:01:28]} Bf4 {[%emt 0:01:31]} 31. b4 {[%emt 0:00:53]} Ra8 {[%emt 0:01:54]} 32. Kd3 {[%emt 0:04:04]} Kc7 {[%emt 0:00:58]} 33. Kc4 {[%emt 0:04:04]} Kb7 {[%emt 0:00:14]} 34. Rf3 {[%emt 0:01:01]} Rh8 {[%emt 0:04:08]} 35. Rd3 {[%emt 0:06:02]} Re8 {[%emt 0:03:39]} 36. Rd1 {[%emt 0:00:59]} g6 37. Re1 f5 {[%emt 0:03:49]} 38. f3 {[%emt 0:02:24]} Kc7 {[%emt 0:01:52]} 39. Ra1 {[%emt 0:04:31]} Kb7 {[%emt 0:00:11]} 40. Re1 {[%emt 0:00:00]} Bg3 {[%emt 0:00:00]} 41. Rg1 {[%emt 0:01:24]} Bf4 {[%emt 0:06:21]} 42. Re1 {[%emt 0:00:54]} Bc7 {[%emt 0:02:57]} 43. Rg1 {[%emt 0:01:59]} Bh2 {[%emt 0:05:17]} 44. Rh1 {[%emt 0:01:39]} Bg3 {[%emt 0:01:13]} 45. Rg1 {[%emt 0:00:11]} Bf2 {[%emt 0:01:00]} 46. Rf1 {[%emt 0:00:29]} Bg3 {[%emt 0:01:38]} 47. Rg1 {[%emt 0:00:17]} Bf4 {[%emt 0:00:11]} 48. Re1 {[%emt 0:00:30]} Kc7 {[%emt 0:10:25]} 49. Ra1 {[%emt 0:00:18]} Ra8 {[%emt 0:04:22]} 50. Re1 {[%emt 0:02:15]} Kd7 {[%emt 0:00:10]} 51. Ra1 {[%emt 0:00:43]} Bh2 {[%emt 0:02:00]} 52. Rh1 {[%emt 0:00:21]} Bg3 {[%emt 0:00:32]} 53. Rg1 {[%emt 0:00:25]} Bf2 {[%emt 0:00:23]} 54. Rf1 {[%emt 0:01:13]} Be3 {[%emt 0:00:47]} 55. Re1 {[%emt 0:00:39]} Bd2 {[%emt 0:01:06]} 56. Rd1 {[%emt 0:00:28]} Bf4 {[%emt 0:00:10]} 57. Ra1 {[%emt 0:00:19]} Ke8 {[%emt 0:00:32]} 58. Re1 {[%emt 0:05:16]} Kf7 {[%emt 0:00:08]} 59. Ra1 {[%emt 0:00:15]} Bc7 {[%emt 0:00:34]} 60. Kc3 {[%emt 0:07:48]} Kf6 {[%emt 0:00:53]} 61. Kc4 {[%emt 0:00:40]} Bf4 {[%emt 0:00:40]} 62. Rh1 {[%emt 0:03:04]} Bg3 {[%emt 0:00:33]} 63. Rg1 {[%emt 0:00:22]} Bc7 {[%emt 0:00:13]} 64. Ra1 {[%emt 0:01:51]} Bf4 {[%emt 0:00:50]} 65. Kc3 {[%emt 0:04:14]} Bc7 {[%emt 0:00:33]} 66. Kc4 {[%emt 0:00:27]} Bg3 {[%emt 0:00:14]} 67. Rg1 {[%emt 0:00:31]} Bf4 {[%emt 0:00:08]} 68. Ra1 {[%emt 0:00:16]} Bc7 {[%emt 0:00:17]} 69. Kc3 {[%emt 0:00:27]} Rh8 {[%emt 0:00:32]} 70. Rh1 {[%emt 0:00:55]} Rh4 {[%emt 0:00:17]} 71. Kd3 {[%emt 0:01:16]} Rh7 {[%emt 0:00:33]} 72. Ke3 {[%emt 0:02:34]} Bg3 {[%emt 0:00:53]} 73. Kd3 {[%emt 0:00:47]} e5 {[%emt 0:00:30]} 74. Ke3 {[%emt 0:03:11]} Ke6 {[%emt 0:00:54]} 75. dxe5 {[%emt 0:03:39]} Bxe5 {[%emt 0:00:05]} 76. b3 {[%emt 0:00:35]} Rd7 {[%emt 0:00:49]} 77. Ke2 {[%emt 0:01:26]} Rh7 {[%emt 0:00:47]} 78. Be3 {[%emt 0:01:23]} f4 {[%emt 0:00:24]} 79. Bc5 {[%emt 0:00:34]} Rh8 {[%emt 0:00:16]} 80. Kd3 {[%emt 0:01:58]} Rd8+ {[%emt 0:00:27]} 81. Kc2 {[%emt 0:00:23]} Rh8 {[%emt 0:00:46]} 82. Re1 {[%emt 0:01:16]} Kf6 {[%emt 0:00:35]} 83. Rh1 {[%emt 0:01:51]} Rd8 {[%emt 0:00:24]} 84. Rd1 {[%emt 0:01:15]} Rh8 {[%emt 0:00:23]} 85. Rh1 {[%emt 0:00:09]} Rh7 {[%emt 0:00:04]} 86. Kd3 {[%emt 0:00:31]} Rh6 {[%emt 0:00:51]} 87. Kc2 {[%emt 0:00:37]} Rh7 {[%emt 0:00:09]} 88. Kd3 {[%emt 0:00:03]} Rd7+ {[%emt 0:00:17]} 89. Kc2 {[%emt 0:00:07]} Rh7 {[%emt 0:01:15]} 90. Kd3 {[%emt 0:00:07]} Rh8 {[%emt 0:00:04]} 91. Kc2 {[%emt 0:00:09]} Ra8 {[%emt 0:00:35]} 92. Re1 {[%emt 0:01:09]} Re8 {[%emt 0:00:54]} 93. Bd4 {[%emt 0:01:48]} Re6 {[%emt 0:00:32]} 94. Rxe5 {[%emt 0:00:48]} Rxe5 {[%emt 0:00:19]} 95. Kd3 {[%emt 0:00:30]} Ke6 {[%emt 0:00:35]} 96. Bxe5 {[%emt 0:00:05]} Kxe5 {[%emt 0:00:03]} 97. Kc4 {[%emt 0:00:09] Kd5+} 1-0

[Event "EYCC Girls-U14 2019"]
[Site "Bratislava"]
[Date "2019.08.08"]
[Round "7.19"]
[White "Kasaeva, Sofiia"]
[Black "Batagan, Ilinca-Petra"]
[Result "1-0"]
[ECO "C65"]
[WhiteElo "1845"]
[BlackElo "1748"]
[Annotator "NA"]
[PlyCount "46"]
[EventDate "2019.08.02"]
[EventType "swiss"]
[EventCountry "SVK"]
[SourceTitle "playchess.com"]
[Source "ChessBase"]
[SourceQuality "1"]
[TimeControl "40/5400+30:1800+30"]

1. e4 {[%emt 0:00:00]} e5 {[%emt 0:00:00]} 2. Nf3 {[%emt 0:00:00]} Nc6 {[%emt 0:00:00]} 3. Bb5 {[%emt 0:00:00]} Nf6 {[%emt 0:00:22]} 4. O-O {[%emt 0:00:04]} Bc5 {[%emt 0:00:40]} 5. c3 {[%emt 0:00:14]} O-O {[%emt 0:00:27]} 6. d4 {[%emt 0:00:27]} Bb6 {[%emt 0:00:46]} 7. Bg5 {[%emt 0:00:20]} h6 {[%emt 0:00:54]} 8. Bh4 {[%emt 0:00:06]} g5 {[%emt 0:06:36]} 9. Nxg5 {[%emt 0:00:23]} Nxe4 {[%emt 0:16:25]} 10. Nf3 {[%emt 0:21:18]} Ng5 {[%emt 0:02:58]} 11. Nbd2 {[%emt 0:28:46]} exd4 {[%emt 0:05:59]} 12. Bd3 {[%emt 0:08:16]} f5 {[%emt 0:06:53]} 13. cxd4 {[%emt 0:00:14]} Nxd4 {[%emt 0:01:47]} 14. Nxd4 {[%emt 0:01:30]} Bxd4 {[%emt 0:02:03]} 15. Qh5 {[%emt 0:02:21]} Bg7 {[%emt 0:04:59]} 16. f4 {[%emt 0:01:54]} Qf6 {[%emt 0:10:29]} 17. fxg5 {[%emt 0:01:47]} Qd4+ {[%emt 0:03:02]} 18. Rf2 {[%emt 0:04:10]} Qxd3 {[%emt 0:00:46]} 19. gxh6 {[%emt 0:00:16]} Bd4 {[%emt 0:01:19]} 20. Qg6+ {[%emt 0:01:39]} Kh8 {[%emt 0:00:12]} 21. Nf3 {[%emt 0:03:56]} Qc4 {[%emt 0:06:04]} 22. Nxd4 {[%emt 0:02:05]} Qxd4 {[%emt 0:00:10]} 23. Be7 {[%emt 0:00:17]} Re8 1-0

[Event "EYCC Girls-U14 2019"]
[Site "Bratislava"]
[Date "2019.08.08"]
[Round "7.20"]
[White "Mikhailina, Elena"]
[Black "Katter, Katharina"]
[Result "1/2-1/2"]
[ECO "C99"]
[WhiteElo "1689"]
[BlackElo "1844"]
[Annotator "NA"]
[PlyCount "109"]
[EventDate "2019.08.02"]
[EventType "swiss"]
[EventCountry "SVK"]
[SourceTitle "playchess.com"]
[Source "ChessBase"]
[SourceQuality "1"]
[TimeControl "40/5400+30:1800+30"]

1. e4 {[%emt 0:00:00]} e5 {[%emt 0:00:00]} 2. Nf3 {[%emt 0:00:00]} Nc6 {[%emt 0:00:00]} 3. Bb5 {[%emt 0:00:00]} a6 {[%emt 0:00:27]} 4. Ba4 {[%emt 0:00:00]} Nf6 {[%emt 0:00:27]} 5. O-O {[%emt 0:00:00]} Be7 {[%emt 0:00:50]} 6. Re1 {[%emt 0:00:05]} b5 {[%emt 0:00:18]} 7. Bb3 {[%emt 0:00:05]} d6 {[%emt 0:00:10]} 8. c3 {[%emt 0:00:42]} O-O {[%emt 0:00:54]} 9. h3 {[%emt 0:00:19]} Na5 {[%emt 0:00:35]} 10. Bc2 {[%emt 0:00:06]} c5 {[%emt 0:00:07]} 11. d4 {[%emt 0:00:06]} Qc7 {[%emt 0:00:23]} 12. Nbd2 {[%emt 0:00:25]} cxd4 {[%emt 0:00:33]} 13. cxd4 {[%emt 0:00:06]} Rd8 {[%emt 0:01:07]} 14. b3 {[%emt 0:00:22]} Nc6 {[%emt 0:03:26]} 15. Bb2 {[%emt 0:01:18]} Bb7 {[%emt 0:05:57]} 16. Rc1 {[%emt 0:05:40]} Rac8 {[%emt 0:04:07]} 17. Bb1 {[%emt 0:17:06]} Qb8 {[%emt 0:07:05]} 18. Qe2 {[%emt 0:13:04]} Nh5 {[%emt 0:18:59]} 19. g3 {[%emt 0:10:37]} Nf6 {[%emt 0:03:15]} 20. d5 {[%emt 0:26:34]} Na7 {[%emt 0:01:30]} 21. Bd3 {[%emt 0:01:04]} Rxc1 {[%emt 0:04:17]} 22. Rxc1 {[%emt 0:00:06]} Rc8 {[%emt 0:00:10]} 23. Qd1 {[%emt 0:03:41]} Nd7 {[%emt 0:05:36]} 24. Rc2 {[%emt 0:08:20]} Nc5 {[%emt 0:07:02]} 25. Qe2 {[%emt 0:05:40]} f5 {[%emt 0:02:33]} 26. exf5 {[%emt 0:05:07]} Bxd5 {[%emt 0:00:44]} 27. Ne4 {[%emt 0:01:29]} Nxd3 {[%emt 0:02:58]} 28. Qxd3 {[%emt 0:00:27]} Qb7 {[%emt 0:01:20]} 29. Rxc8+ {[%emt 0:00:48]} Nxc8 {[%emt 0:00:23]} 30. Nfd2 {[%emt 0:00:22]} Nb6 {[%emt 0:07:37]} 31. Kh2 {[%emt 0:01:09]} Nd7 {[%emt 0:01:57]} 32. Ba3 {[%emt 0:00:21]} Nc5 {[%emt 0:04:27]} 33. Nxc5 {[%emt 0:00:34]} dxc5 {[%emt 0:00:10]} 34. Qe3 {[%emt 0:00:27]} Qc7 {[%emt 0:01:29]} 35. Nf3 {[%emt 0:00:26]} Bd6 {[%emt 0:05:26]} 36. Ng5 {[%emt 0:00:23]} c4 {[%emt 0:03:00]} 37. Qd2 {[%emt 0:00:52]} Qc6 {[%emt 0:01:56]} 38. bxc4 {[%emt 0:00:24]} bxc4 {[%emt 0:00:51]} 39. Bb4 {[%emt 0:00:18]} h6 {[%emt 0:02:22]} 40. Bxd6 {[%emt 0:00:00]} Qxd6 {[%emt 0:00:00]} 41. Ne4 {[%emt 0:01:31]} Qc6 {[%emt 0:04:54]} 42. Nc3 {[%emt 0:00:12]} Bh1 {[%emt 0:03:30]} 43. f4 {[%emt 0:01:47]} exf4 {[%emt 0:02:43]} 44. gxf4 {[%emt 0:00:08]} Bf3 {[%emt 0:03:18]} 45. Kg3 {[%emt 0:04:24]} Be4 {[%emt 0:02:17]} 46. Qd8+ {[%emt 0:05:01]} Kf7 {[%emt 0:01:44]} 47. f6 {[%emt 0:02:37]} gxf6 {[%emt 0:00:24]} 48. Qh8 {[%emt 0:02:16]} Qd6 {[%emt 0:05:48]} 49. Nxe4 {[%emt 0:02:03]} Qd3+ {[%emt 0:00:05]} 50. Kf2 {[%emt 0:01:34]} Qxe4 {[%emt 0:00:09]} 51. Qxh6 {[%emt 0:00:06]} Qc2+ {[%emt 0:03:35]} 52. Ke1 {[%emt 0:01:38]} Qc3+ {[%emt 0:01:23]} 53. Kd1 {[%emt 0:03:25]} Qd3+ {[%emt 0:00:26]} 54. Kc1 {[%emt 0:01:25]} Qa3+ {[%emt 0:01:36]} 55. Kb1 {[%emt 0:01:04]} 1/2-1/2

[Event "EYCC Girls-U14 2019"]
[Site "Bratislava"]
[Date "2019.08.08"]
[Round "7.21"]
[White "Karavitaki, Evangelia"]
[Black "Lomaia, Diana"]
[Result "0-1"]
[ECO "B87"]
[WhiteElo "1710"]
[BlackElo "1813"]
[Annotator "NA"]
[PlyCount "149"]
[EventDate "2019.08.02"]
[EventType "swiss"]
[EventCountry "SVK"]
[SourceTitle "playchess.com"]
[Source "ChessBase"]
[SourceQuality "1"]
[TimeControl "40/5400+30:1800+30"]

1. e4 {[%emt 0:00:00]} c5 {[%emt 0:00:00]} 2. Nf3 {[%emt 0:00:00]} d6 {[%emt 0:00:00]} 3. d4 {[%emt 0:00:00]} cxd4 {[%emt 0:00:10]} 4. Nxd4 {[%emt 0:00:00]} Nf6 {[%emt 0:00:08]} 5. Nc3 {[%emt 0:00:10]} a6 {[%emt 0:00:21]} 6. Bc4 {[%emt 0:00:25]} e6 {[%emt 0:00:43]} 7. Bb3 {[%emt 0:00:09]} b5 {[%emt 0:01:11]} 8. Qf3 {[%emt 0:01:25]} Bb7 {[%emt 0:02:04]} 9. O-O {[%emt 0:00:39]} Nbd7 {[%emt 0:07:53]} 10. Re1 {[%emt 0:11:38]} Nc5 {[%emt 0:01:32]} 11. Bg5 {[%emt 0:28:37]} Be7 {[%emt 0:01:25]} 12. a3 {[%emt 0:07:49]} O-O {[%emt 0:07:58]} 13. Re3 {[%emt 0:05:59]} Qc7 {[%emt 0:11:33]} 14. Rae1 {[%emt 0:02:58]} Nfxe4 {[%emt 0:17:51]} 15. Bxe7 {[%emt 0:12:06]} Nxc3 {[%emt 0:03:18]} 16. Qg4 {[%emt 0:00:46]} Qxe7 {[%emt 0:04:12]} 17. Rxc3 {[%emt 0:00:49]} Qf6 {[%emt 0:02:07]} 18. Rg3 {[%emt 0:05:53]} Rac8 {[%emt 0:03:04]} 19. Ba2 {[%emt 0:05:39]} d5 {[%emt 0:05:21]} 20. c3 {[%emt 0:00:54]} Ne4 {[%emt 0:01:46]} 21. Rf3 {[%emt 0:00:39]} Qg6 {[%emt 0:00:36]} 22. Qh4 {[%emt 0:01:04]} Qg5 {[%emt 0:04:42]} 23. Qxg5 {[%emt 0:01:51]} Nxg5 {[%emt 0:00:02]} 24. Rfe3 {[%emt 0:00:18]} Ne4 {[%emt 0:02:00]} 25. f3 {[%emt 0:00:43]} Nd6 {[%emt 0:01:34]} 26. Kf2 {[%emt 0:00:51]} Rc7 {[%emt 0:05:50]} 27. R3e2 {[%emt 0:03:10]} a5 {[%emt 0:01:53]} 28. Bb1 {[%emt 0:02:10]} Ba6 {[%emt 0:06:46]} 29. Bd3 {[%emt 0:01:49]} Nc4 {[%emt 0:02:10]} 30. Ra1 {[%emt 0:02:13]} e5 {[%emt 0:02:57]} 31. Nf5 {[%emt 0:02:10]} f6 {[%emt 0:00:54]} 32. Bxc4 {[%emt 0:02:09]} bxc4 {[%emt 0:00:57]} 33. Rd2 {[%emt 0:00:25]} Rd8 {[%emt 0:00:30]} 34. Rad1 {[%emt 0:00:23]} Bb7 {[%emt 0:00:19]} 35. Ne3 {[%emt 0:00:36]} Rc5 {[%emt 0:00:14]} 36. Nc2 {[%emt 0:00:57]} Kf7 {[%emt 0:00:56]} 37. Ke1 {[%emt 0:00:31]} Ke6 {[%emt 0:01:18]} 38. Ne3 {[%emt 0:00:20]} Bc6 {[%emt 0:01:08]} 39. Kf2 {[%emt 0:00:40]} Rd7 {[%emt 0:00:34]} 40. Kf1 {[%emt 0:00:00]} Rb5 {[%emt 0:00:00]} 41. Rf2 {[%emt 0:05:16]} Rb3 {[%emt 0:07:35]} 42. Ke1 {[%emt 0:05:44]} Bb5 {[%emt 0:03:01]} 43. Nf1 {[%emt 0:10:25]} d4 {[%emt 0:05:18]} 44. cxd4 {[%emt 0:01:30]} Rxd4 {[%emt 0:01:34]} 45. Rfd2 {[%emt 0:02:47]} Rdd3 {[%emt 0:02:18]} 46. Ng3 {[%emt 0:00:53]} f5 {[%emt 0:04:20]} 47. Rc2 {[%emt 0:01:18]} Rxd1+ {[%emt 0:05:31]} 48. Kxd1 {[%emt 0:00:02]} Rd3+ {[%emt 0:00:07]} 49. Ke1 {[%emt 0:01:33]} g6 {[%emt 0:02:21]} 50. Ne2 {[%emt 0:01:44]} g5 {[%emt 0:02:35]} 51. Nc3 {[%emt 0:01:11]} Bc6 {[%emt 0:01:01]} 52. Kf2 {[%emt 0:01:15]} h5 {[%emt 0:01:02]} 53. h3 {[%emt 0:01:07]} e4 {[%emt 0:00:30]} 54. fxe4 {[%emt 0:00:49]} fxe4 {[%emt 0:00:05]} 55. Kf1 {[%emt 0:02:26]} Ke5 {[%emt 0:00:43]} 56. Rf2 {[%emt 0:00:30]} e3 {[%emt 0:00:53]} 57. Re2 {[%emt 0:00:28]} Kf4 {[%emt 0:00:29]} 58. Ke1 {[%emt 0:00:33]} h4 {[%emt 0:00:41]} 59. Rc2 {[%emt 0:00:29]} Ke5 {[%emt 0:00:35]} 60. Re2 {[%emt 0:00:30]} Kd4 {[%emt 0:00:09]} 61. Nd1 {[%emt 0:00:28]} Be8 {[%emt 0:00:35]} 62. Nc3 {[%emt 0:00:31]} Bd7 {[%emt 0:00:33]} 63. Rc2 {[%emt 0:00:29]} Bc6 {[%emt 0:00:50]} 64. Re2 {[%emt 0:00:27]} Rd2 {[%emt 0:00:20]} 65. Rxd2+ {[%emt 0:00:36]} exd2+ {[%emt 0:00:02]} 66. Kxd2 {[%emt 0:00:22]} Bxg2 {[%emt 0:00:05]} 67. Ne2+ {[%emt 0:00:11]} Ke4 {[%emt 0:00:36]} 68. Ng1 {[%emt 0:00:06]} Kf4 {[%emt 0:00:29]} 69. Ke2 {[%emt 0:00:40]} Kg3 {[%emt 0:00:12]} 70. Ke3 {[%emt 0:00:58]} Bxh3 {[%emt 0:00:24]} 71. Ne2+ {[%emt 0:00:39]} Kg2 {[%emt 0:00:30]} 72. Nd4 {[%emt 0:00:33]} Bg4 {[%emt 0:00:15]} 73. Nc2 {[%emt 0:00:15]} h3 {[%emt 0:00:13]} 74. Ne1+ {[%emt 0:00:10]} Kf1 {[%emt 0:00:10]} 75. Kd4 0-1

[Event "EYCC Girls-U14 2019"]
[Site "Bratislava"]
[Date "2019.08.08"]
[Round "7.22"]
[White "Blokhin, Sofia"]
[Black "Rubinshtein, Kamilla"]
[Result "1-0"]
[ECO "B32"]
[WhiteElo "1675"]
[BlackElo "1799"]
[Annotator "NA"]
[PlyCount "95"]
[EventDate "2019.08.02"]
[EventType "swiss"]
[EventCountry "SVK"]
[SourceTitle "playchess.com"]
[Source "ChessBase"]
[SourceQuality "1"]
[TimeControl "40/5400+30:1800+30"]

1. e4 {[%emt 0:00:00]} c5 {[%emt 0:00:00]} 2. Nf3 {[%emt 0:00:00]} Nc6 {[%emt 0:00:00]} 3. d4 {[%emt 0:00:00]} cxd4 {[%emt 0:00:00]} 4. Nxd4 {[%emt 0:00:00]} e5 {[%emt 0:00:00]} 5. Nb5 {[%emt 0:00:00]} d6 {[%emt 0:00:08]} 6. N1c3 {[%emt 0:00:09]} a6 {[%emt 0:00:11]} 7. Na3 {[%emt 0:00:07]} b5 {[%emt 0:00:16]} 8. Nd5 {[%emt 0:00:09]} Nce7 {[%emt 0:00:31]} 9. Bg5 {[%emt 0:00:28]} Rb8 {[%emt 0:08:36]} 10. c4 {[%emt 0:05:01]} f6 {[%emt 0:05:17]} 11. Be3 {[%emt 0:02:42]} Nxd5 {[%emt 0:04:35]} 12. cxd5 {[%emt 0:03:02]} f5 {[%emt 0:07:36]} 13. exf5 {[%emt 0:05:10]} Bxf5 {[%emt 0:00:28]} 14. Be2 {[%emt 0:02:27]} Qa5+ {[%emt 0:05:52]} 15. Bd2 {[%emt 0:11:33]} Qb6 {[%emt 0:01:02]} 16. O-O {[%emt 0:09:02]} Nf6 {[%emt 0:01:02]} 17. Bg5 {[%emt 0:05:29]} Be7 {[%emt 0:13:21]} 18. Rc1 {[%emt 0:06:54]} Rc8 {[%emt 0:07:51]} 19. Bxf6 {[%emt 0:05:47]} Rxc1 {[%emt 0:05:44]} 20. Qxc1 {[%emt 0:00:21]} Bxf6 {[%emt 0:00:25]} 21. Nc2 {[%emt 0:02:33]} O-O {[%emt 0:00:50]} 22. Nb4 {[%emt 0:05:43]} Rc8 {[%emt 0:08:53]} 23. Nc6 {[%emt 0:00:54]} h6 {[%emt 0:06:51]} 24. Qd1 {[%emt 0:09:26]} Bg5 {[%emt 0:02:34]} 25. Bg4 {[%emt 0:03:30]} Rf8 {[%emt 0:03:08]} 26. Bxf5 {[%emt 0:03:32]} Rxf5 {[%emt 0:00:09]} 27. Qg4 {[%emt 0:00:32]} Rf7 {[%emt 0:03:08]} 28. Qe6 {[%emt 0:02:51]} Qc7 {[%emt 0:03:49]} 29. g3 {[%emt 0:00:40]} Qd7 {[%emt 0:03:27]} 30. Qxd7 {[%emt 0:01:49]} Rxd7 {[%emt 0:00:34]} 31. h4 {[%emt 0:01:46]} Bf6 {[%emt 0:00:55]} 32. Nb8 {[%emt 0:01:23]} Rc7 {[%emt 0:00:56]} 33. Nc6 {[%emt 0:00:42]} Kf7 {[%emt 0:01:10]} 34. b4 {[%emt 0:01:06]} g5 {[%emt 0:02:08]} 35. hxg5 {[%emt 0:01:08]} Bxg5 {[%emt 0:00:48]} 36. f4 {[%emt 0:00:34]} exf4 {[%emt 0:00:13]} 37. gxf4 {[%emt 0:00:05]} Bh4 {[%emt 0:00:51]} 38. Kg2 {[%emt 0:00:17]} Kg6 {[%emt 0:01:10]} 39. Kf3 {[%emt 0:01:26]} Rf7 {[%emt 0:01:43]} 40. Ke4 {[%emt 0:00:00]} h5 {[%emt 0:00:00]} 41. Rg1+ {[%emt 0:04:53]} Kh6 {[%emt 0:05:32]} 42. Rg2 {[%emt 0:04:56]} Rf8 {[%emt 0:04:01]} 43. Nd4 {[%emt 0:07:53]} Re8+ {[%emt 0:03:13]} 44. Kf3 {[%emt 0:03:25]} Rf8 {[%emt 0:02:15]} 45. Re2 {[%emt 0:01:08]} Rf6 {[%emt 0:08:06]} 46. Ke4 {[%emt 0:01:50]} Kg6 {[%emt 0:02:09]} 47. Rg2+ {[%emt 0:00:21]} Kf7 {[%emt 0:01:27]} 48. Nf3 {[%emt 0:00:11]} 1-0